Workbook

Sheet General assumptions
B1: if you enter percent values, enter without % sign, i.e. if you need to enter 50%, just enter 50.
B3: Part of the entity affected | C3: Internet store | G3: College
C4: number of employees | E4: yearly salary | G4: number of employees | I4: yearly salary
B5: Operational employees | C5: 75 | D5: persons | E5: 30000 | F5: €/year | G5: 75 | H5: persons | I5: 30000 | J5: €/year
B6: Managers | C6: 15 | D6: persons | E6: 50000 | F6: €/year | G6: 15 | H6: persons | I6: 50000 | J6: €/year
B7: Top managers | C7: 3 | D7: persons | E7: 100000 | F7: €/year | G7: 3 | H7: persons | I7: 100000 | J7: €/year
B8: IT & security officers | C8: 6 | D8: persons | E8: 50000 | F8: €/year | G8: 6 | H8: persons | I8: 50000 | J8: €/year
B9: Lawyers | C9: 1 | D9: persons | E9: 80000 | F9: €/year | G9: 1 | H9: persons | I9: 80000 | J9: €/year
B10: Total employees | C10: =SUM(C5:C9) -> 100 | D10: persons | E10: =SUMPRODUCT(C5:C9,E5:E9) -> 3680000 | F10: €/year | G10: =SUM(G5:G9) -> 100 | H10: persons | I10: =SUMPRODUCT(G5:G9,I5:I9) -> 3680000 | J10: €/year
B11: Mean average salary | E11: =E10/C10 -> 36800 | F11: €/year | I11: =I10/G10 -> 36800 | J11: €/year
B12: College | F12: Numer of the affected students in the college | G12: 2000 | H12: Yearly tuition | I12: 6000 | J12: €/year
F13: Total for all affected participants | G13: =G10+G12 -> 2100 | H13: Total yearly cost | I13: =I10+G12*I12 -> 15680000 | J13: €/year
B14: Internet store
B15: Revenue | C15: 200000000 | D15: €
B16: Average margin | C16: 5 | D16: %
B17: Number of work-days per year (for both store and college) | C17: =52*5-11-26-10 -> 213 | D17: days | E17: 52 weeks @ 5 days -11 public holidays - 26 days of vacation - 10 illness days
B18: Other personnel costs (above total personnel salaries)* | C18: 32 | D18: % | G18: 32 | H18: %
B19: Other costs (above total personnel costs)** | C19: 60 | D19: % | G19: 90 | H19: %
A21: * | B21: Other personnel costs include among others: social security, insurance premium (if paid by employer), superannuation (if paid by employer), leaves, trade-union dues (in part paid by an employer)
A22: ** | B22: Other costs comprise all costs borne by the entity besides total personnel costs and Cost of Goods Sold (COGS), i.e. subcontractors' costs, rents, supplies, amortisation&depreciation, financial costs, etc

Sheet Spam
B2: Spam assumptions | G2: Common data
C3: number of spam mails per day per employee and student | G3: 500 | H3: spam mails
C4: percent of spam mails that get through the filtering systems | G4: 1 | H4: % | I4: =G3*G4/100 -> 5 | J4: spams deleted manualy daily
C5: time to identify e-mail as a spam, delete it and return to the productive work | G5: 2 | H5: seconds
C7: number of work-days lost yearly by each of the employee or student | G7: =G5*G4*G3/100*Days_in_year/480/60 -> 0.07395833333 | H7: days
B9: Calculation | D9: Loss components | E9: Internet store | G9: College
C10: Labor loss | E10: =Days_lost/Days_in_year*I_total_E*I_aver_sala*(1+I_other_pers_cost/100) -> 1686.666667 | F10: € | G10: =Days_lost/Days_in_year*C_total_year_cost*(1+C_other_pers_cost/100) -> 7186.666667 | H10: €
C11: Other company/college costs | E11: =E10*I_other_cost/100 -> 1012 | F11: € | G11: =G10*C_other_cost/100 -> 6468 | H11: €
C12: Lost income | E12: =I_year_turnover*I_aver_margin/100*Days_lost/Days_in_year -> 3472.222222 | F12: € | G12: 0 | H12: €
C13: Recovery value of destroyed equipment and lost licenses | E13: 0 | F13: € | G13: 0 | H13: €
C14: Yearly amortisation of additional serves power and bandwidth to process the spam | E14: 500 | F14: € | G14: 500 | H14: €
C15: Loss of intangible assets | E15: =SUM(E16:E18) -> 0 | F15: € | G15: =SUM(G16:G18) -> 0 | H15: €
D16: reputation (among stakeholders, incl. customers and employees) | E16: 0 | F16: € | G16: 0 | H16: €
D17: know-how and trade secrets | E17: 0 | F17: € | G17: 0 | H17: €
D18: new R&D required | E18: 0 | F18: € | G18: 0 | H18: €
C19: Legal responsibility | E19: =SUM(E20:E21) -> 0 | F19: € | G19: =SUM(G20:G21) -> 0 | H19: €
D20: contractual penalties | E20: 0 | F20: € | G20: 0 | H20: €
D21: external lawyers' fees | E21: 0 | F21: € | G21: 0 | H21: €
C22: TOTAL YEARLY COST | E22: =E10+E11+E12+E13+E14+E15+E19 -> 6670.888889 | F22: € | G22: =G10+G11+G12+G13+G14+G15+G19 -> 14154.66667 | H22: €

Sheet Virus
B2: Virus assumptions | F2: Common data
C3: Percent of employees' (and students') computers affected | G3: 20 | H3: %
C4: Number of work-days lost by each of the employees/students affected | G4: 1 | H4: day
C5: Time to clean up 1 computer | G5: 30 | H5: minutes
C6: Percent of IT & sec managers involved in clean-up | G6: 60 | H6: %
C7: Time to identify the problem and create a solution | G7: 2 | H7: hours
C8: Additional time required to reinstall the systems | G8: 6 | H8: days
B9: Calculation | F9: Internet store | H9: College
C10: i.e. number of employees' computers affected (to clean-up) | F10: =ROUND(G3/100*I_total_E,0) -> 20 | G10: computers | H10: =ROUND(G3/100*C_total_E,0) -> 20 | I10: computers
C11: i.e. number of students' computers affected | H11: =ROUND(G3/100*Students,0) -> 400 | I11: computers
C12: i.e. number of IT & security department employees angaged | F12: =ROUND(G6/100*I_IT_secu_offi,0) -> 4 | G12: persons | H12: =ROUND(G6/100*C_IT_secu_offi,0) -> 4 | I12: persons
C13: Time to clean all computers | F13: =F10*G5/F12/60 -> 2.5 | G13: hours | H13: =H10*G5/H12/60 -> 2.5 | I13: hours
C14: Mean amount of lost work and time to wait for the cleaned computer | F14: =G4*8+G7+F13/2 -> 11.25 | G14: hours | H14: =G4*8+G7+H13/2 -> 11.25 | I14: hours
C15: Idle time of all affected employees | F15: =F14*F10 -> 225 | G15: hours | H15: =H14*H10 -> 225 | I15: hours
C16: Additional work of IT dept & security employees | F16: =F12*(G7+F14) -> 53 | G16: hours | H16: =H12*(G7+H14) -> 53 | I16: hours
C17: Lost time, idle time and reinstallment work by students | H17: =H11*(G4*8+G7+G5/60) -> 4200 | I17: hours
B19: Calculation | D19: Loss components | F19: Internet store | H19: College
C20: Labor loss | F20: =SUM(F21:F22) -> 6590.375587 | G20: € | H20: =SUM(H21:H22) -> 21379.10798 | I20: €
D21: employees and students | F21: =F15/8/Days_in_year*I_aver_sala -> 4859.15493 | G21: € | H21: =(H15/8/Days_in_year*C_aver_sala+H17/8/Days_in_year*Tuition) -> 19647.88732 | I21: €
D22: IT & security department | F22: =(G8+F16)/8/Days_in_year*S_I_IT_secu_offi -> 1731.220657 | G22: € | H22: =(G8+H16)/8/Days_in_year*S_C_IT_secu_offi -> 1731.220657 | I22: €
C23: Other company/college costs | F23: =F20*I_other_cost/100 -> 3954.225352 | G23: € | H23: =H20*C_other_cost/100 -> 19241.19718 | I23: €
C24: Lost income | F24: =I_year_turnover*I_aver_margin/100*G3/100/Days_in_year*F14/8 -> 13204.22535 | G24: € | H24: 0 | I24: €
C25: Recovery value of destroyed equipment and lost licenses | F25: 0 | G25: € | H25: 0 | I25: €
C26: Yearly amortisation of additional serves power and bandwidth to process the spam | F26: 0 | G26: € | H26: 0 | I26: €
C27: Loss of intangible assets | F27: =SUM(F28:F30) -> 0 | G27: € | H27: =SUM(H28:H30) -> 0 | I27: €
E28: reputation (among stakeholders, incl. customers and employees) | F28: 0 | G28: € | H28: 0 | I28: €
E29: know-how and trade secrets | F29: 0 | G29: € | H29: 0 | I29: €
E30: new R&D required | F30: 0 | G30: € | H30: 0 | I30: €
C31: Legal responsibility | F31: =SUM(F32:F33) -> 0 | G31: € | H31: =SUM(H32:H33) -> 0 | I31: €
E32: contractual penalties | F32: 0 | G32: € | H32: 0 | I32: €
E33: external lawyers' fees | F33: 0 | G33: € | H33: 0 | I33: €
C34: TOTAL COST PER INCIDENT | F34: =F20+F23+F24+F25+F26+F27+F31 -> 23748.82629 | G34: € | H34: =H20+H23+H24+H25+H26+H27+H31 -> 40620.30516 | I34: €

Sheet DDoS
B2: DDoS assumptions | F2: Common data
C3: Duration of DDoS attack | G3: 36 | H3: hours
F4: Internet store | H4: College
C5: Percent of employees working at decreased efficiency | F5: 50 | G5: % | H5: 10 | I5: %
C6: Level of efficiency of those who have decreased their efficiency | F6: 20 | G6: % | H6: 50 | I6: %
C7: Percent of all students who are actively participating in the distant learning process | H7: 20 | I7: %
B9: Calculation | D9: Loss components | F9: Internet store | H9: College
C10: Labor loss | F10: =G3/24*F5/100*I_total_E*(1-DDoS!F6/100)/Days_in_year*I_aver_sala*(1+I_other_pers_cost/100) -> 13683.38028 | G10: € | H10: =G3/24*H5/100*C_total_E*(1-DDoS!H6/100)/Days_in_year*C_aver_sala*(1+C_other_pers_cost/100) -> 1710.422535 | I10: €
C11: Other company/college costs | F11: =F10*I_other_cost/100 -> 8210.028169 | G11: € | H11: =H10*C_other_cost/100 -> 1539.380282 | I11: €
C12: Lost internet store income | F12: =G3/24/365*I_year_turnover*I_aver_margin/100 -> 41095.89041 | G12: € | H12: 0 | I12: €
C13: Tuition lost by students who were not able to learn in the distant learning process | H13: =H7/100*Students*G3/24/Days_in_year*Tuition -> 16901.40845 | I13: €
C14: Recovery value of destroyed equipment and lost licenses | F14: 0 | G14: € | H14: 0 | I14: €
C15: Yearly amortisation of additional serves power and bandwidth to process the spam | F15: 0 | G15: € | H15: 0 | I15: €
C16: Loss of intangible assets | F16: =SUM(F17:F19) -> 0 | G16: € | H16: =SUM(H17:H19) -> 0 | I16: €
E17: reputation (among stakeholders, incl. customers and employees) | F17: 0 | G17: € | H17: 0 | I17: €
E18: know-how and trade secrets | F18: 0 | G18: € | H18: 0 | I18: €
E19: new R&D required | F19: 0 | G19: € | H19: 0 | I19: €
C20: Legal responsibility | F20: =SUM(F21:F22) -> 0 | G20: € | H20: =SUM(H21:H22) -> 0 | I20: €
E21: contractual penalties | F21: 0 | G21: € | H21: 0 | I21: €
E22: external lawyers' fees | F22: 0 | G22: € | H22: 0 | I22: €
C23: TOTAL COST PER INCIDENT | F23: =F10+F11+F12+F14+F15+F16+F20 -> 62989.29886 | G23: € | H23: =H10+H11+H12+H13+H14+H15+H16+H20 -> 20151.21127 | I23: €

Sheet Data theft
B2: Data theft assumptions | G2: Common data
C3: Number of class action participants | G3: 1000 | H3: persons
C4: Succesfully sued to pay | G4: 1000 | H4: each person
B5: The incident required:
C6: number of top management hours | G6: 30 | H6: hours
C7: number of lawyers hours | G7: 100 | H7: hours
B8: Entity had to pay external legal fees | G8: 10000 | H8: €
B9: Percent of customers/students who during the following year decided not to buy/study due to bad press (relative to the present number of customers/students) | G9: 5 | H9: %
B11: Calculation | D11: Loss components | F11: Internet store | H11: College
C12: Labor loss | F12: =(G6/8*S_I_top_mana+G7/8*S_I_lawy)/Days_in_year*(1+I_other_pers_cost/100) -> 8521.126761 | G12: € | H12: =(G6/8*S_C_top_mana+G7/8*S_C_lawy)/Days_in_year*(1+C_other_pers_cost/100) -> 8521.126761 | I12: €
C13: Other company/college costs | F13: =F12*I_other_cost/100 -> 5112.676056 | G13: € | H13: =H12*C_other_cost/100 -> 7669.014085 | I13: €
C14: Lost income | F14: 0 | G14: € | H14: 0 | I14: €
C15: Recovery value of destroyed equipment and lost licenses | F15: 0 | G15: € | H15: 0 | I15: €
C16: Yearly amortisation of additional serves power and bandwidth to process the spam | F16: 0 | G16: € | H16: 0 | I16: €
C17: Loss of intangible assets | F17: =SUM(F18:F20) -> 500000 | G17: € | H17: =SUM(H18:H20) -> 200000 | I17: €
D18: reputation (among stakeholders, incl. customers and employees) | F18: =G9/100*I_year_turnover*I_aver_margin/100 -> 500000 | G18: € | H18: =G9/100*Students/3*Tuition -> 200000 | I18: €
D19: know-how and trade secrets | F19: 0 | G19: € | H19: 0 | I19: €
D20: new R&D required | F20: 0 | G20: € | H20: 0 | I20: €
C21: Legal responsibility | F21: =SUM(F22:F23) -> 1000000 | G21: € | H21: =SUM(H22:H23) -> 1000000 | I21: €
D22: contractual or legal penalties | F22: =G3*G4 -> 1000000 | G22: € | H22: =G3*G4 -> 1000000 | I22: €
D23: external lawyers' fees | F23: 0 | G23: € | H23: 0 | I23: €
C24: TOTAL COST PER INCIDENT | F24: =F12+F13+F14+F15+F16+F17+F21 -> 1513633.803 | G24: € | H24: =H12+H13+H14+H15+H16+H17+H21 -> 1216190.141 | I24: €

Sheet Botnet
B1: LEA officers entered the entity premises and seized:
B2: 3 | C2: employee computers
B3: 1 | C3: IT admin computers
B4: 1 | C4: file server, router
B6: Botnet assumptions | E6: Common data
C7: Percent of total number of employees working at decreased efficiency for half a day | F7: 50 | G7: %
C8: Efficiency of those who worked at the decreased efficiency | F8: 20 | G8: %
C9: IT staff work additionally (due to lost previous work and need to restore) | F9: 20 | G9: work-days
C10: Lawyers worked on the problem for | F10: 1 | G10: work-days
C11: Top managers worked on the problem for | F11: 0.5 | G11: work-days
B13: Calculation | E13: Internet store | G13: College
C14: Labor loss | E14: =SUM(E15:E18) -> 10721.12676 | F14: € | G14: =SUM(G15:G18) -> 10721.12676 | H14: €
D15: operational employees lost time | E15: =F7/100*I_total_E*(1-F8/100)*0.5/Days_in_year*S_I_oper_empl*(1+I_other_pers_cost/100) -> 3718.309859 | F15: € | G15: =F7/100*C_total_E*(1-F8/100)*0.5/Days_in_year*S_C_oper_empl*(1+C_other_pers_cost/100) -> 3718.309859 | H15: €
D16: IT staff additional work | E16: =F9/Days_in_year*S_I_IT_secu_offi*(1+I_other_pers_cost/100) -> 6197.183099 | F16: € | G16: =F9/Days_in_year*S_C_IT_secu_offi*(1+C_other_pers_cost/100) -> 6197.183099 | H16: €
D17: Lawyers additional time | E17: =F10/Days_in_year*S_I_lawy*(1+I_other_pers_cost/100) -> 495.7746479 | F17: € | G17: =F10/Days_in_year*S_C_lawy*(1+C_other_pers_cost/100) -> 495.7746479 | H17: €
D18: Top managers additional time | E18: =F11/Days_in_year*S_I_top_mana*(1+I_other_pers_cost/100) -> 309.8591549 | F18: € | G18: =F11/Days_in_year*S_C_top_mana*(1+C_other_pers_cost/100) -> 309.8591549 | H18: €
C19: Other company/college costs | E19: =E14*I_other_cost/100 -> 6432.676056 | F19: € | G19: =G14*C_other_cost/100 -> 9649.014085 | H19: €
C20: Lost income | E20: 0 | F20: € | G20: 0 | H20: €
C21: Recovery value of destroyed equipment and lost licenses | E21: 30000 | F21: € | G21: 30000 | H21: €
C22: Yearly amortisation of additional serves power and bandwidth | E22: 0 | F22: € | G22: 0 | H22: €
C23: Loss of intangible assets | E23: =SUM(E24:E26) -> 0 | F23: € | G23: =SUM(G24:G26) -> 0 | H23: €
D24: reputation (among stakeholders, incl. customers and employees) | E24: 0 | F24: € | G24: 0 | H24: €
D25: know-how and trade secrets | E25: 0 | F25: € | G25: 0 | H25: €
D26: new R&D required | E26: 0 | F26: € | G26: 0 | H26: €
C27: Legal responsibility | E27: =SUM(E28:E29) -> 0 | F27: € | G27: =SUM(G28:G29) -> 0 | H27: €
D28: contractual penalties | E28: 0 | F28: € | G28: 0 | H28: €
D29: external lawyers' fees | E29: 0 | F29: € | G29: 0 | H29: €
C30: TOTAL COST PER INCIDENT | E30: =E14+E19+E20+E21+E22+E23+E27 -> 47153.80282 | F30: € | G30: =G14+G19+G20+G21+G22+G23+G27 -> 50370.14085 | H30: €
B34: LEA officers entered the entity premises and seized:
B35: 3 | C35: employee computers
B36: 1 | C36: IT admin computers
B37: 1 | C37: file server, router
B38: Number of internet store/college employees | C38: 50 | D38: 20 | E38: % efficiency for half a day
B39: IT admin lost | C39: 20
B40: Lawyers worked on the problem for | C40: 1
B41: Top manager worked on the problem for | C41: 0.5
C42: internet store | D42: college
B44: Labor loss | C44: =C38*1/2*(1-D38/100)/'General assumptions'!C17*'General assumptions'!#REF!*(1+'General assumptions'!C18/100) ->  | D44: =C38*1/2*(1-D38/100)/'General assumptions'!C17*'General assumptions'!#REF!*(1+'General assumptions'!C18/100) ->  | E44: €
B45: Admin labor lost | C45: =C39/'General assumptions'!C17*'General assumptions'!E8*(1+'General assumptions'!C18/100) -> 6197.183099 | D45: =C39/'General assumptions'!C17*'General assumptions'!E8*(1+'General assumptions'!C18/100) -> 6197.183099 | E45: €
B46: Lawyers' cost | C46: =C40/'General assumptions'!C17*'General assumptions'!E9*(1+'General assumptions'!C19/100) -> 600.9389671 | D46: =C40/'General assumptions'!C17*'General assumptions'!E9*(1+'General assumptions'!C19/100) -> 600.9389671
B47: Top manager's cost | C47: =C41/'General assumptions'!C17*'General assumptions'!E9*(1+'General assumptions'!C19/100) -> 300.4694836 | D47: =C41/'General assumptions'!C17*'General assumptions'!E9*(1+'General assumptions'!C19/100) -> 300.4694836
B48: Other company/college cost | C48: =(C44+C45+C46+C47)*'General assumptions'!C19/100 ->  | D48: =(D44+C45+D46+D47)*'General assumptions'!G19/100 ->  | E48: €
B50: Lost income | C50: =E36/8/'General assumptions'!C8/'General assumptions'!G12*'General assumptions'!C18*'General assumptions'!C19/100 -> 0 | D50: 0 | E50: €
A52: Recovery value of destroyed equipment and lost licenses | C52: 30000 | D52: 30000 | E52: €
A54: Loss of intangible assets | C54: 0 | D54: 0 | E54: €
B55: reputation (among stakeholders, incl. customers and employees) | E55: €
B56: know-how and trade secrets | E56: €
B57: new R&D required | E57: €
A59: Legal responsibility | C59: 0 | D59: 0 | E59: €
B60: contractual penalties | E60: €
B61: external lawyers' fees | E61: €
B63: TOTAL COST PER INCIDENT | C63: =SUM(C44:C61) ->  | D63: =SUM(D44:D61) ->  | E63: €

Sheet Comparison
B2: Losses comparison
B4: Parameter | C4: Internet store | H4: College
C5: Spam | D5: Virus | E5: DDoS | F5: Data theft | G5: Botnet | H5: Spam | I5: Virus | J5: DDoS | K5: Data theft | L5: Botnet
B6: SLE (Single Loss Expectancy) | C6: * | D6: =Virus!F34 -> 23748.82629 | E6: =DDoS!F23 -> 62989.29886 | F6: ='Data theft'!F24 -> 1513633.803 | G6: =Botnet!E30 -> 47153.80282 | H6: * | I6: =Virus!H34 -> 40620.30516 | J6: =DDoS!H23 -> 20151.21127 | K6: ='Data theft'!H24 -> 1216190.141 | L6: =Botnet!G30 -> 50370.14085
B8: ARO (Annual Rate of Occurence) | C8: * | D8: 0.2 | E8: 2 | F8: 0.1 | G8: 0.1 | H8: * | I8: 0.2 | J8: 0.01 | K8: 0.1 | L8: 0.2
B10: ALE (Annualized Loss Expectancy) | C10: =Spam!E22 -> 6670.888889 | D10: =D6*D8 -> 4749.765258 | E10: 125978.5977 | F10: 151363.3803 | G10: 4715.380282 | H10: =Spam!G22 -> 14154.66667 | I10: 8124.061033 | J10: 201.5121127 | K10: 121619.0141 | L10: 10074.02817
B12: TALE (= Total ALE) | E12: =SUM(C10:G10) -> 293478.0124 | J12: =SUM(H10:L10) -> 154173.2821
A29: * | B29: the SPAM values were calculated for a year, not for a single occurence

Sheet ROSI calculation
B2: Internet store | C2: Total cost | D2: Number of years | E2: Expected reduction rate of ARO and ALE (=Xi) | J2: ALEi * Xi | O2: N * sum of ALEi * Xi | P2: ROSI
B3: Mitigation method | E3: Spam | F3: Virus | G3: DDoS | H3: Data theft | I3: Botnet | J3: Spam | K3: Virus | L3: DDoS | M3: Data theft | N3: Botnet
B4: IDS/IPS | C4: 15000 | D4: 3 | E4: 0 | F4: 0.5 | G4: 0 | H4: 0 | I4: 0.5 | J4: =Comparison!C10*E4 -> 0 | K4: =Comparison!D10*F4 -> 2374.882629 | L4: =Comparison!E10*G4 -> 0 | M4: =Comparison!F10*H4 -> 0 | N4: =Comparison!G10*I4 -> 2357.690141 | O4: =D4*(J4+K4+L4+M4+N4) -> 14197.71831 | P4: =(O4-C4)/C4 -> -0.05348544601
B11: College | C11: Total cost | D11: Number of years | E11: Expected reduction rate of ARO and ALE (=Xi) | J11: ALEi * Xi | O11: N * sum of ALEi * Xi | P11: ROSI
B12: Mitigation method | E12: Spam | F12: Virus | G12: DDoS | H12: Data theft | I12: Botnet | J12: Spam | K12: Virus | L12: DDoS | M12: Data theft | N12: Botnet
B13: IDS/IPS | C13: 15000 | D13: 3 | E13: 0 | F13: 0.5 | G13: 0 | H13: 0 | I13: 0.5 | J13: =Comparison!H10*E13 -> 0 | K13: =Comparison!I10*F13 -> 4062.030516 | L13: =Comparison!J10*G13 -> 0 | M13: =Comparison!K10*H13 -> 0 | N13: =Comparison!L10*I13 -> 5037.014085 | O13: =D13*(J13+K13+L13+M13+N13) -> 27297.1338 | P13: =(O13-C13)/C13 -> 0.8198089202
